[Event "Late-Titled-Tuesday-Blitz-October-24-2023"]
[Site "Chess.com"]
[Date "2023.10.24"]
[Round "7"]
[White "Mykola-Bortnyk"]
[Black "WPWPWP-2015"]
[Result "1-0"]
[WhiteElo "2944"]
[BlackElo "2601"]
[TimeControl "180+1"]
[EndTime "15:14:11 PDT"]
[Termination "Mykola-Bortnyk won by checkmate"]

1. e4 {[%clk 0:03:00.9]} 1... e5 {[%clk 0:02:58.6]} 2. Nf3 {[%clk 0:03:00.5]}
2... Nc6 {[%clk 0:02:58.9]} 3. Bc4 {[%clk 0:03:01.3]} 3... Nf6 {[%clk
0:02:58.2]} 4. Ng5 {[%clk 0:03:01.6]} 4... d5 {[%clk 0:02:58]} 5. exd5 {[%clk
0:03:02.4]} 5... Na5 {[%clk 0:02:58.5]} 6. d3 {[%clk 0:03:03.1]} 6... Nxc4
{[%clk 0:02:54]} 7. dxc4 {[%clk 0:03:03.4]} 7... h6 {[%clk 0:02:44.8]} 8. Nf3
{[%clk 0:03:02.8]} 8... e4 {[%clk 0:02:44]} 9. Nd4 {[%clk 0:03:02.9]} 9... Bd6
{[%clk 0:02:40]} 10. Nc3 {[%clk 0:03:02.2]} 10... O-O {[%clk 0:02:39.3]} 11. Be3
{[%clk 0:03:02.9]} 11... Re8 {[%clk 0:02:34.2]} 12. Qd2 {[%clk 0:03:03.4]} 12...
Ng4 {[%clk 0:02:29.7]} 13. O-O-O {[%clk 0:03:02.3]} 13... Nxe3 {[%clk
0:02:25.8]} 14. fxe3 {[%clk 0:03:00.6]} 14... a6 {[%clk 0:02:23.3]} 15. Rdf1
{[%clk 0:02:44.2]} 15... Qg5 {[%clk 0:02:17.3]} 16. h4 {[%clk 0:02:40.7]} 16...
Qh5 {[%clk 0:02:11.3]} 17. Qf2 {[%clk 0:02:33.3]} 17... Be5 {[%clk 0:01:52.1]}
18. Nf5 {[%clk 0:02:06.4]} 18... Bxc3 {[%clk 0:01:42]} 19. bxc3 {[%clk
0:02:07.3]} 19... Rf8 {[%clk 0:01:00]} 20. g4 {[%clk 0:02:05.9]} 20... Qxg4
{[%clk 0:00:40.3]} 21. Nxh6+ {[%clk 0:02:06.2]} 21... gxh6 {[%clk 0:00:39.7]}
22. Rhg1 {[%clk 0:02:06.9]} 22... h5 {[%clk 0:00:21.7]} 23. Qf6 {[%clk
0:02:04.4]} 23... Kh7 {[%clk 0:00:16.5]} 24. Kb2 {[%clk 0:01:57]} 24... Qxg1
{[%clk 0:00:10.7]} 25. Rxg1 {[%clk 0:01:57.2]} 25... Bg4 {[%clk 0:00:10.8]} 26.
Rxg4 {[%clk 0:01:52.7]} 26... hxg4 {[%clk 0:00:10.8]} 27. Qf5+ {[%clk
0:01:53.5]} 27... Kh6 {[%clk 0:00:09.4]} 28. Qg5+ {[%clk 0:01:53.8]} 28... Kh7
{[%clk 0:00:09.5]} 29. Qh5+ {[%clk 0:01:54.7]} 29... Kg7 {[%clk 0:00:08.8]} 30.
Qxg4+ {[%clk 0:01:55.6]} 30... Kh6 {[%clk 0:00:07.7]} 31. Qf4+ {[%clk
0:01:55.6]} 31... Kg7 {[%clk 0:00:07.5]} 32. Qxe4 {[%clk 0:01:55.7]} 32... f5
{[%clk 0:00:06.7]} 33. Qe5+ {[%clk 0:01:55.6]} 33... Kg6 {[%clk 0:00:06.8]} 34.
Qxc7 {[%clk 0:01:56]} 34... Rf7 {[%clk 0:00:05.9]} 35. Qg3+ {[%clk 0:01:55.5]}
35... Kh7 {[%clk 0:00:05.5]} 36. c5 {[%clk 0:01:55.9]} 36... Rg8 {[%clk
0:00:05.1]} 37. Qe5 {[%clk 0:01:55]} 37... Rg4 {[%clk 0:00:04.7]} 38. Qe6 {[%clk
0:01:52.8]} 38... Kg7 {[%clk 0:00:04.2]} 39. h5 {[%clk 0:01:53.5]} 39... Re4
{[%clk 0:00:02.8]} 40. h6+ {[%clk 0:01:49.8]} 40... Kf8 {[%clk 0:00:03.1]} 41.
Qd6+ {[%clk 0:01:50.1]} 41... Ree7 {[%clk 0:00:02.7]} 42. a4 {[%clk 0:01:44.7]}
42... Kg8 {[%clk 0:00:03]} 43. Qg6+ {[%clk 0:01:44.8]} 43... Kh8 {[%clk
0:00:03.3]} 44. d6 {[%clk 0:01:44.5]} 44... Rd7 {[%clk 0:00:03.2]} 45. a5 {[%clk
0:01:44.2]} 45... f4 {[%clk 0:00:03]} 46. exf4 {[%clk 0:01:44.6]} 46... Rh7
{[%clk 0:00:03.1]} 47. Qe8# {[%clk 0:01:44.6]} 1-0

[Event "Late-Titled-Tuesday-Blitz-October-24-2023"]
[Site "Chess.com"]
[Date "2023.10.24"]
[Round "7"]
[White "Balla_Tamas"]
[Black "iJueles"]
[Result "0-1"]
[WhiteElo "2336"]
[BlackElo "2472"]
[TimeControl "180+1"]
[EndTime "15:14:15 PDT"]
[Termination "iJueles won by resignation"]

1. e4 {[%clk 0:02:53.2]} 1... c6 {[%clk 0:03:00]} 2. d4 {[%clk 0:02:50.3]} 2...
d5 {[%clk 0:03:00.2]} 3. exd5 {[%clk 0:02:51.2]} 3... cxd5 {[%clk 0:03:00.4]} 4.
c4 {[%clk 0:02:51.9]} 4... Nf6 {[%clk 0:03:00.2]} 5. Nc3 {[%clk 0:02:51.9]} 5...
Nc6 {[%clk 0:03:00.2]} 6. Bg5 {[%clk 0:02:51.2]} 6... e6 {[%clk 0:02:59.1]} 7.
Nf3 {[%clk 0:02:50.5]} 7... Be7 {[%clk 0:02:59]} 8. cxd5 {[%clk 0:02:46.5]} 8...
Nxd5 {[%clk 0:02:58]} 9. Bxe7 {[%clk 0:02:46.9]} 9... Ndxe7 {[%clk 0:02:55.4]}
10. Bd3 {[%clk 0:02:46.4]} 10... Ng6 {[%clk 0:02:46.7]} 11. O-O {[%clk
0:02:02.7]} 11... O-O {[%clk 0:02:44.4]} 12. Be4 {[%clk 0:01:52.3]} 12... Bd7
{[%clk 0:02:33.9]} 13. Qe2 {[%clk 0:01:48.4]} 13... Qb6 {[%clk 0:02:31.1]} 14.
Rad1 {[%clk 0:01:45.4]} 14... Nce7 {[%clk 0:02:28.3]} 15. Bb1 {[%clk 0:01:41.5]}
15... Bc6 {[%clk 0:02:24.6]} 16. Rfe1 {[%clk 0:01:40.9]} 16... Bxf3 {[%clk
0:02:20.1]} 17. Qxf3 {[%clk 0:01:35.1]} 17... Rfd8 {[%clk 0:02:15.8]} 18. Qe3
{[%clk 0:01:17.8]} 18... Rac8 {[%clk 0:02:01.6]} 19. Re2 {[%clk 0:01:13.3]}
19... a6 {[%clk 0:01:54.8]} 20. Ne4 {[%clk 0:00:57]} 20... Nf5 {[%clk
0:01:52.8]} 21. Qh3 {[%clk 0:00:54.2]} 21... Rxd4 {[%clk 0:01:51.5]} 22. Rde1
{[%clk 0:00:50.7]} 22... Rcd8 {[%clk 0:01:45.4]} 23. Ng5 {[%clk 0:00:50.3]}
23... h6 {[%clk 0:01:29.4]} 24. Bxf5 {[%clk 0:00:32]} 24... exf5 {[%clk
0:01:12.4]} 25. Re8+ {[%clk 0:00:25.1]} 25... Rxe8 {[%clk 0:01:12.2]} 26. Rxe8+
{[%clk 0:00:24.9]} 26... Nf8 {[%clk 0:01:13.1]} 27. g3 {[%clk 0:00:05]} 27...
Rd1+ {[%clk 0:01:07.7]} 28. Kg2 {[%clk 0:00:05.2]} 28... Qc6+ {[%clk 0:01:07.1]}
29. Nf3 {[%clk 0:00:05.6]} 29... Qxe8 {[%clk 0:01:06.9]} 0-1

[Event "Late-Titled-Tuesday-Blitz-October-24-2023"]
[Site "Chess.com"]
[Date "2023.10.24"]
[Round "7"]
[White "Payyappat"]
[Black "SlippperyWhenWet"]
[Result "1-0"]
[WhiteElo "2524"]
[BlackElo "2356"]
[TimeControl "180+1"]
[EndTime "15:14:18 PDT"]
[Termination "Payyappat won by resignation"]

1. e4 {[%clk 0:03:00.9]} 1... c5 {[%clk 0:02:56.3]} 2. Nf3 {[%clk 0:03:01.3]}
2... d6 {[%clk 0:02:55.5]} 3. d4 {[%clk 0:03:02.2]} 3... cxd4 {[%clk 0:02:55.8]}
4. Nxd4 {[%clk 0:03:03.1]} 4... Nf6 {[%clk 0:02:56.3]} 5. Nc3 {[%clk 0:03:03.2]}
5... a6 {[%clk 0:02:56.8]} 6. h4 {[%clk 0:03:01.7]} 6... Nc6 {[%clk 0:02:51.9]}
7. h5 {[%clk 0:02:57.9]} 7... h6 {[%clk 0:02:45.3]} 8. f3 {[%clk 0:02:48.6]}
8... e5 {[%clk 0:02:42.8]} 9. Nb3 {[%clk 0:02:47.6]} 9... Be6 {[%clk 0:02:41.4]}
10. Be3 {[%clk 0:02:47.3]} 10... d5 {[%clk 0:02:28.6]} 11. exd5 {[%clk
0:02:44.2]} 11... Nxd5 {[%clk 0:02:29]} 12. Nxd5 {[%clk 0:02:43.2]} 12... Qxd5
{[%clk 0:02:29.5]} 13. Qxd5 {[%clk 0:02:41.9]} 13... Bxd5 {[%clk 0:02:27.2]} 14.
c4 {[%clk 0:02:42.4]} 14... Be6 {[%clk 0:02:23.3]} 15. O-O-O {[%clk 0:02:38.7]}
15... Be7 {[%clk 0:02:11.4]} 16. g4 {[%clk 0:02:35.6]} 16... Rc8 {[%clk
0:02:02.5]} 17. Kb1 {[%clk 0:02:33.5]} 17... O-O {[%clk 0:01:35.4]} 18. Bd3
{[%clk 0:02:30.3]} 18... Rfd8 {[%clk 0:01:34]} 19. Rhg1 {[%clk 0:02:27]} 19...
Nb4 {[%clk 0:01:02]} 20. Be2 {[%clk 0:02:13.3]} 20... Rxd1+ {[%clk 0:00:36.2]}
21. Rxd1 {[%clk 0:02:14.2]} 21... Bxc4 {[%clk 0:00:35.7]} 22. Bxc4 {[%clk
0:02:12.3]} 22... Rxc4 {[%clk 0:00:35.2]} 23. Rd7 {[%clk 0:02:12.7]} 23... Bg5
{[%clk 0:00:31.8]} 24. Bxg5 {[%clk 0:02:10.9]} 24... hxg5 {[%clk 0:00:32.7]} 25.
Rxb7 {[%clk 0:01:58.4]} 25... Nd3 {[%clk 0:00:21.4]} 26. a3 {[%clk 0:01:52.2]}
26... Rf4 {[%clk 0:00:19.8]} 27. Nd2 {[%clk 0:01:51.2]} 27... Ne1 {[%clk
0:00:18.6]} 28. Rb3 {[%clk 0:01:37.5]} 28... Kh7 {[%clk 0:00:12.8]} 29. Kc1
{[%clk 0:01:32.4]} 29... Rd4 {[%clk 0:00:09.4]} 30. Re3 {[%clk 0:01:15.4]} 30...
Nd3+ {[%clk 0:00:09.3]} 31. Kc2 {[%clk 0:01:14.9]} 31... Nf4 {[%clk 0:00:03.6]}
32. Rxe5 {[%clk 0:01:12.6]} 32... Rc4+ {[%clk 0:00:04.1]} 33. Nxc4 {[%clk
0:01:11.5]} 1-0

[Event "Late-Titled-Tuesday-Blitz-October-24-2023"]
[Site "Chess.com"]
[Date "2023.10.24"]
[Round "7"]
[White "cassoulet"]
[Black "DanylaBagrov"]
[Result "1-0"]
[WhiteElo "2793"]
[BlackElo "2570"]
[TimeControl "180+1"]
[EndTime "15:14:25 PDT"]
[Termination "cassoulet won by resignation"]

1. d4 {[%clk 0:03:00.9]} 1... d6 {[%clk 0:02:49]} 2. e4 {[%clk 0:03:00.2]} 2...
Nf6 {[%clk 0:02:49.1]} 3. Nc3 {[%clk 0:03:00.7]} 3... e5 {[%clk 0:02:49.8]} 4.
dxe5 {[%clk 0:03:00.7]} 4... dxe5 {[%clk 0:02:50.7]} 5. Qxd8+ {[%clk 0:03:00.7]}
5... Kxd8 {[%clk 0:02:51.6]} 6. Bg5 {[%clk 0:03:00.9]} 6... Bd6 {[%clk
0:02:50.3]} 7. O-O-O {[%clk 0:03:01.3]} 7... Nd7 {[%clk 0:02:50.9]} 8. Nf3
{[%clk 0:03:01.2]} 8... h6 {[%clk 0:02:44.2]} 9. Bh4 {[%clk 0:03:00.8]} 9... g5
{[%clk 0:02:42.6]} 10. Bg3 {[%clk 0:03:00.9]} 10... Nh5 {[%clk 0:02:38.2]} 11.
Bxe5 {[%clk 0:02:56.9]} 11... Nxe5 {[%clk 0:02:32.8]} 12. Nxe5 {[%clk
0:02:57.8]} 12... Be6 {[%clk 0:02:33.2]} 13. Nxf7+ {[%clk 0:02:43.6]} 13... Bxf7
{[%clk 0:02:29.8]} 14. e5 {[%clk 0:02:44.1]} 14... Ke7 {[%clk 0:02:19.8]} 15.
exd6+ {[%clk 0:02:44.1]} 15... cxd6 {[%clk 0:02:20.7]} 16. Bb5 {[%clk
0:02:40.3]} 16... Rad8 {[%clk 0:02:19.2]} 17. Rhe1+ {[%clk 0:02:39.6]} 17... Kf8
{[%clk 0:02:19.3]} 18. Ne4 {[%clk 0:02:39.1]} 18... d5 {[%clk 0:02:17.1]} 19.
Nc5 {[%clk 0:02:39.2]} 19... b6 {[%clk 0:02:07.3]} 20. Nd7+ {[%clk 0:02:27.7]}
20... Kg7 {[%clk 0:02:05.8]} 21. Ne5 {[%clk 0:02:27.4]} 21... Rhf8 {[%clk
0:01:54.5]} 22. Nc6 {[%clk 0:02:24.9]} 22... Rd7 {[%clk 0:01:53.7]} 23. Nd4
{[%clk 0:02:23.9]} 23... Rc7 {[%clk 0:01:47.1]} 24. g3 {[%clk 0:02:20]} 24...
Nf6 {[%clk 0:01:42.5]} 25. Bd3 {[%clk 0:02:18.4]} 25... Ng4 {[%clk 0:01:35.9]}
26. f3 {[%clk 0:02:16.2]} 26... Nf2 {[%clk 0:01:29.2]} 27. Rd2 {[%clk
0:02:09.5]} 27... Nxd3+ {[%clk 0:01:26.9]} 28. Rxd3 {[%clk 0:02:10.4]} 28... Kf6
{[%clk 0:01:26.3]} 29. Rde3 {[%clk 0:02:10.1]} 29... Rfc8 {[%clk 0:01:23.7]} 30.
c3 {[%clk 0:02:10.2]} 30... Rc4 {[%clk 0:01:24.1]} 31. Kd2 {[%clk 0:02:10.1]}
31... R4c7 {[%clk 0:01:20.2]} 32. Re5 {[%clk 0:02:06]} 32... a6 {[%clk
0:01:04.1]} 33. f4 {[%clk 0:02:06]} 33... gxf4 {[%clk 0:01:03.1]} 34. Rf5+
{[%clk 0:02:05.5]} 34... Kg6 {[%clk 0:00:58.6]} 35. gxf4 {[%clk 0:02:06.3]}
35... Kh7 {[%clk 0:00:53]} 36. Rf6 {[%clk 0:02:04.8]} 36... Rg8 {[%clk
0:00:49.9]} 37. Nf5 {[%clk 0:02:01.2]} 37... Rg2+ {[%clk 0:00:41.3]} 38. Re2
{[%clk 0:02:01.3]} 38... Rxe2+ {[%clk 0:00:41.7]} 39. Kxe2 {[%clk 0:02:02.2]}
39... Bg6 {[%clk 0:00:42]} 40. Nd4 {[%clk 0:01:59.8]} 40... Rg7 {[%clk 0:00:38]}
41. f5 {[%clk 0:01:58.3]} 41... Bh5+ {[%clk 0:00:34.9]} 42. Kf2 {[%clk
0:01:58.4]} 42... a5 {[%clk 0:00:32.7]} 43. Rxb6 {[%clk 0:01:58.3]} 43... Bd1
{[%clk 0:00:32.3]} 44. Rb5 {[%clk 0:01:48.8]} 44... a4 {[%clk 0:00:29]} 45. Rxd5
{[%clk 0:01:48.5]} 45... Rg4 {[%clk 0:00:24.7]} 46. Rd7+ {[%clk 0:01:45.9]}
46... Kg8 {[%clk 0:00:24.4]} 47. Ne6 {[%clk 0:01:45]} 47... Bc2 {[%clk
0:00:21.4]} 48. f6 {[%clk 0:01:41.7]} 48... Bg6 {[%clk 0:00:16.1]} 49. Rg7+
{[%clk 0:01:40.6]} 49... Kh8 {[%clk 0:00:15.6]} 50. f7 {[%clk 0:01:36.3]} 1-0

[Event "Late-Titled-Tuesday-Blitz-October-24-2023"]
[Site "Chess.com"]
[Date "2023.10.24"]
[Round "7"]
[White "Kostukov_Alex"]
[Black "Likvidator228"]
[Result "1-0"]
[WhiteElo "2438"]
[BlackElo "2563"]
[TimeControl "180+1"]
[EndTime "15:14:28 PDT"]
[Termination "Kostukov_Alex won by resignation"]

1. g3 {[%clk 0:02:48.4]} 1... h5 {[%clk 0:02:59.1]} 2. Nf3 {[%clk 0:02:46.3]}
2... d5 {[%clk 0:02:58.9]} 3. d4 {[%clk 0:02:45.6]} 3... c6 {[%clk 0:02:58.4]}
4. Bg2 {[%clk 0:02:44.1]} 4... Nf6 {[%clk 0:02:58.5]} 5. O-O {[%clk 0:02:40.7]}
5... Bg4 {[%clk 0:02:58.6]} 6. Ne5 {[%clk 0:02:40.4]} 6... Nbd7 {[%clk
0:02:57.5]} 7. c4 {[%clk 0:02:38.5]} 7... e6 {[%clk 0:02:57.6]} 8. Nc3 {[%clk
0:02:34.1]} 8... Nxe5 {[%clk 0:02:49.7]} 9. dxe5 {[%clk 0:02:33.6]} 9... Nd7
{[%clk 0:02:50]} 10. h3 {[%clk 0:02:24.8]} 10... Bf5 {[%clk 0:02:49.1]} 11. cxd5
{[%clk 0:02:21.5]} 11... cxd5 {[%clk 0:02:49.5]} 12. f4 {[%clk 0:02:13.5]} 12...
Bc5+ {[%clk 0:02:48.1]} 13. Kh2 {[%clk 0:02:11.2]} 13... g5 {[%clk 0:02:36.4]}
14. e4 {[%clk 0:02:09.2]} 14... dxe4 {[%clk 0:02:30.7]} 15. Nxe4 {[%clk
0:02:08.8]} 15... gxf4 {[%clk 0:02:30.6]} 16. Bxf4 {[%clk 0:02:06]} 16... Rc8
{[%clk 0:01:43.8]} 17. Rc1 {[%clk 0:02:00.7]} 17... b6 {[%clk 0:01:39.6]} 18. b4
{[%clk 0:01:51.9]} 18... Bxb4 {[%clk 0:01:35.6]} 19. Qa4 {[%clk 0:01:49.9]}
19... Rxc1 {[%clk 0:01:16.3]} 20. Nf6+ {[%clk 0:01:16.9]} 20... Qxf6 {[%clk
0:01:10.9]} 21. exf6 {[%clk 0:01:16.4]} 21... Rxf1 {[%clk 0:01:09.8]} 22. Bxf1
{[%clk 0:01:16.7]} 22... a5 {[%clk 0:01:03.6]} 23. Bb5 {[%clk 0:01:15.6]} 23...
e5 {[%clk 0:01:03.9]} 24. Bxe5 {[%clk 0:01:15]} 24... Kd8 {[%clk 0:00:48]} 25.
Qd1 {[%clk 0:01:07.8]} 25... Re8 {[%clk 0:00:42.9]} 26. Bf4 {[%clk 0:01:01.4]}
26... h4 {[%clk 0:00:36.6]} 27. gxh4 {[%clk 0:00:59.7]} 27... Bc5 {[%clk
0:00:32.5]} 28. h5 {[%clk 0:00:54.2]} 28... Kc8 {[%clk 0:00:30.3]} 29. Qd5
{[%clk 0:00:51.2]} 29... Be6 {[%clk 0:00:11.8]} 30. Qa8+ {[%clk 0:00:48]} 1-0

[Event "Late-Titled-Tuesday-Blitz-October-24-2023"]
[Site "Chess.com"]
[Date "2023.10.24"]
[Round "7"]
[White "campochess"]
[Black "Chessbard1972"]
[Result "0-1"]
[WhiteElo "2214"]
[BlackElo "2351"]
[TimeControl "180+1"]
[EndTime "15:14:30 PDT"]
[Termination "Chessbard1972 won by resignation"]

1. e4 {[%clk 0:02:59.5]} 1... c5 {[%clk 0:02:58.5]} 2. Nc3 {[%clk 0:02:57.6]}
2... a6 {[%clk 0:02:57.8]} 3. g3 {[%clk 0:02:57.7]} 3... b5 {[%clk 0:02:56.6]}
4. Bg2 {[%clk 0:02:57.7]} 4... Bb7 {[%clk 0:02:57.5]} 5. d3 {[%clk 0:02:56.7]}
5... e6 {[%clk 0:02:56.8]} 6. Nf3 {[%clk 0:02:56.7]} 6... Be7 {[%clk 0:02:46.5]}
7. O-O {[%clk 0:02:56.1]} 7... Nc6 {[%clk 0:02:44.4]} 8. Re1 {[%clk 0:02:55.1]}
8... b4 {[%clk 0:02:42.6]} 9. Ne2 {[%clk 0:02:54]} 9... d5 {[%clk 0:02:39.3]}
10. exd5 {[%clk 0:02:51]} 10... exd5 {[%clk 0:02:38.1]} 11. Nf4 {[%clk
0:02:50.5]} 11... Nf6 {[%clk 0:02:36.7]} 12. Ne5 {[%clk 0:02:43.1]} 12... O-O
{[%clk 0:02:30.4]} 13. Nxc6 {[%clk 0:02:41.5]} 13... Bxc6 {[%clk 0:02:29.6]} 14.
Bd2 {[%clk 0:02:37.8]} 14... Bd6 {[%clk 0:02:26]} 15. Nh5 {[%clk 0:02:36]} 15...
Nxh5 {[%clk 0:02:23.3]} 16. Qxh5 {[%clk 0:02:35.3]} 16... g6 {[%clk 0:02:19.8]}
17. Qh6 {[%clk 0:02:26.9]} 17... Re8 {[%clk 0:02:08.4]} 18. Bg5 {[%clk
0:02:26.6]} 18... Qd7 {[%clk 0:02:02.6]} 19. Bh3 {[%clk 0:02:20.9]} 19... f5
{[%clk 0:01:58.4]} 20. Qh4 {[%clk 0:02:14.1]} 20... Bf8 {[%clk 0:01:56.3]} 21.
Bg2 {[%clk 0:02:10.7]} 21... Bg7 {[%clk 0:01:55.7]} 22. Bf6 {[%clk 0:02:09]}
22... Qf7 {[%clk 0:01:50.4]} 23. Bxg7 {[%clk 0:02:08.5]} 23... Kxg7 {[%clk
0:01:50.2]} 24. c4 {[%clk 0:02:00.4]} 24... Rad8 {[%clk 0:01:43.6]} 25. Re3
{[%clk 0:01:44.7]} 25... Rxe3 {[%clk 0:01:39.4]} 26. fxe3 {[%clk 0:01:44.5]}
26... Re8 {[%clk 0:01:36.4]} 27. Re1 {[%clk 0:01:42]} 27... Bb7 {[%clk
0:01:29.2]} 28. Qf4 {[%clk 0:01:34.9]} 28... d4 {[%clk 0:01:22.3]} 29. Bxb7
{[%clk 0:01:33.3]} 29... Qxb7 {[%clk 0:01:22.1]} 30. e4 {[%clk 0:01:33.4]} 30...
Qe7 {[%clk 0:01:17.3]} 31. e5 {[%clk 0:01:32.7]} 31... Qe6 {[%clk 0:01:15.1]}
32. h4 {[%clk 0:01:31.9]} 32... h6 {[%clk 0:01:13.5]} 33. Qf3 {[%clk 0:01:28.3]}
33... Re7 {[%clk 0:01:11]} 34. Qa8 {[%clk 0:01:27.5]} 34... f4 {[%clk
0:01:04.6]} 35. Qf3 {[%clk 0:01:23.1]} 35... fxg3 {[%clk 0:01:02.4]} 36. Qxg3
{[%clk 0:01:22.7]} 36... Rf7 {[%clk 0:01:01.7]} 37. Rf1 {[%clk 0:01:03.2]} 37...
Rxf1+ {[%clk 0:01:00.3]} 38. Kxf1 {[%clk 0:01:03.4]} 38... Qf5+ {[%clk
0:01:00.4]} 39. Ke2 {[%clk 0:01:03.4]} 39... g5 {[%clk 0:00:57]} 40. hxg5 {[%clk
0:01:02]} 40... hxg5 {[%clk 0:00:57.4]} 41. b3 {[%clk 0:00:55.5]} 41... Kg6
{[%clk 0:00:53.6]} 42. Qh2 {[%clk 0:00:52.4]} 42... Qg4+ {[%clk 0:00:50.4]} 43.
Kd2 {[%clk 0:00:51.4]} 43... Qf4+ {[%clk 0:00:48.2]} 44. Qxf4 {[%clk 0:00:51.4]}
44... gxf4 {[%clk 0:00:48.6]} 45. Ke2 {[%clk 0:00:51.4]} 45... Kf5 {[%clk
0:00:49]} 46. e6 {[%clk 0:00:50.2]} 46... Kxe6 {[%clk 0:00:48.9]} 47. Kf3 {[%clk
0:00:50.3]} 47... Kf5 {[%clk 0:00:49.3]} 0-1

[Event "Late-Titled-Tuesday-Blitz-October-24-2023"]
[Site "Chess.com"]
[Date "2023.10.24"]
[Round "7"]
[White "Yushko_Olga"]
[Black "Veleamater"]
[Result "0-1"]
[WhiteElo "2138"]
[BlackElo "2334"]
[TimeControl "180+1"]
[EndTime "15:14:36 PDT"]
[Termination "Veleamater won on time"]

1. d4 {[%clk 0:03:00.1]} 1... d6 {[%clk 0:03:00.9]} 2. c4 {[%clk 0:02:59.9]}
2... g6 {[%clk 0:03:01.8]} 3. Nf3 {[%clk 0:02:59.3]} 3... Bg7 {[%clk 0:03:02.4]}
4. Nc3 {[%clk 0:02:57.8]} 4... Nf6 {[%clk 0:03:02.9]} 5. Bg5 {[%clk 0:02:57.7]}
5... O-O {[%clk 0:03:03.3]} 6. e3 {[%clk 0:02:58.3]} 6... h6 {[%clk 0:03:03.5]}
7. Bh4 {[%clk 0:02:58.3]} 7... Nc6 {[%clk 0:03:04]} 8. Be2 {[%clk 0:02:57.9]}
8... g5 {[%clk 0:03:03.6]} 9. Bg3 {[%clk 0:02:57.5]} 9... Nd7 {[%clk 0:03:04.5]}
10. Qc2 {[%clk 0:02:53.7]} 10... e5 {[%clk 0:03:04.6]} 11. Rd1 {[%clk
0:02:51.6]} 11... f5 {[%clk 0:03:04.2]} 12. O-O {[%clk 0:02:49]} 12... f4 {[%clk
0:03:02.8]} 13. exf4 {[%clk 0:02:48.3]} 13... exf4 {[%clk 0:03:02.9]} 14. h4
{[%clk 0:02:36]} 14... g4 {[%clk 0:03:02.1]} 15. d5 {[%clk 0:02:21.8]} 15...
gxf3 {[%clk 0:02:59]} 16. dxc6 {[%clk 0:02:17]} 16... fxe2 {[%clk 0:02:58.6]}
17. Nxe2 {[%clk 0:02:17.7]} 17... fxg3 {[%clk 0:02:51.3]} 18. cxd7 {[%clk
0:02:17.3]} 18... gxf2+ {[%clk 0:02:50.3]} 19. Rxf2 {[%clk 0:02:16]} 19... Rxf2
{[%clk 0:02:49.1]} 20. dxc8=Q {[%clk 0:02:12]} 20... Rxc8 {[%clk 0:02:32.1]} 21.
Kxf2 {[%clk 0:02:11.8]} 21... Qxh4+ {[%clk 0:02:32.7]} 22. Kg1 {[%clk
0:02:09.4]} 22... Rf8 {[%clk 0:02:31.5]} 23. Rf1 {[%clk 0:01:57.1]} 23... Rxf1+
{[%clk 0:02:25.8]} 24. Kxf1 {[%clk 0:01:56.9]} 24... Be5 {[%clk 0:02:24.7]} 25.
Qg6+ {[%clk 0:01:55]} 25... Kf8 {[%clk 0:02:24.5]} 26. Qf5+ {[%clk 0:01:47.7]}
26... Ke7 {[%clk 0:02:24.4]} 27. Qh7+ {[%clk 0:01:46.4]} 27... Kd8 {[%clk
0:02:24.5]} 28. Qg8+ {[%clk 0:01:44.4]} 28... Kd7 {[%clk 0:02:24.2]} 29. Qf7+
{[%clk 0:01:43.1]} 29... Qe7 {[%clk 0:02:23.1]} 30. Qf5+ {[%clk 0:01:42.7]}
30... Qe6 {[%clk 0:02:22.8]} 31. Qh7+ {[%clk 0:01:41.2]} 31... Kc6 {[%clk
0:02:21.4]} 32. Qe4+ {[%clk 0:01:40.6]} 32... d5 {[%clk 0:02:20.9]} 33. Nd4+
{[%clk 0:01:37.9]} 33... Kd6 {[%clk 0:02:14.9]} 34. c5+ {[%clk 0:01:19.6]} 34...
Ke7 {[%clk 0:01:56.8]} 35. Nf5+ {[%clk 0:00:49.4]} 35... Kd7 {[%clk 0:01:50.2]}
36. Qg4 {[%clk 0:00:39.7]} 36... Qf6 {[%clk 0:01:43.9]} 37. Ke2 {[%clk
0:00:36.8]} 37... Kc6 {[%clk 0:01:42.6]} 38. b4 {[%clk 0:00:34]} 38... a6 {[%clk
0:01:38.9]} 39. Kd3 {[%clk 0:00:27]} 39... b6 {[%clk 0:01:35.6]} 40. cxb6 {[%clk
0:00:26.2]} 40... cxb6 {[%clk 0:01:35.7]} 41. Qh5 {[%clk 0:00:03.5]} 41... Kb5
{[%clk 0:01:31.5]} 42. g4 {[%clk 0:00:03.1]} 42... Bf4 {[%clk 0:01:30]} 43. Qe8+
{[%clk 0:00:02.9]} 43... Kxb4 {[%clk 0:01:29.5]} 0-1